Cogmind - Beta 10.2 @@@ ROGUE MODE // 2021.07.12 @ 18:06:00 Player: youngster Result: Destroyed by S-43 Plague with Heavy Machine Gun Performance ------------- Evolutions (7) 3500 Regions Visited (14) 2800 Robots Destroyed (181) 905 Value Destroyed (8012) 8012 Prototype IDs (30) 600 Alien Tech Used (0) 0 Bonus (1198) 1198 TOTAL SCORE: 17015 Bonus ------- High Alert Combat Kills 786 Follower Combat Kills 112 Aligned with FarCom 300 Cogmind --------- Core Integrity 0/1300 Matter 211/300 Energy 98/100 System Corruption 21% Temperature Cool (0) Movement Core (50) Location -3/Research Parts ------- > --- POWER (2) -------- (None) > --- PROPULSION (4) --- (None) > --- UTILITY (10) ----- (None) > --- WEAPON (5) ------- (None) > --- INVENTORY (4) ---- Improved Weapon Cycler Layered Medium Armor Plating Micro-nuke Launcher Enhanced Force Lance Peak State ------------ > --- POWER ------------ Light Antimatter Reactor Light Antimatter Reactor > --- PROPULSION ------- Heavy Treads Improved Heavy Siege Treads > --- UTILITY ---------- Advanced Cryofiber Web Coolant Network Large Storage Unit Large Storage Unit Improved Signal Interpreter Experimental Targeting Computer Experimental Targeting Computer Hardened Heavy Armor Plating > --- WEAPON ----------- Plasma Rifle Phase Gun Coil Gun KE Penetrator Railgun > --- INVENTORY -------- Light Fission Core Micro Fission Core Medium Treads Medium Treads Advanced Heat Sink Advanced Cooling System Improved Weapon Cycler System Shield Variable Charge Gun Variable Charge Gun Variable Charge Gun Variable Charge Gun Variable Charge Gun Coil Gun Micro-nuke Launcher Force Lance [Rating: 129] Favorites ----------- Power Light Nuclear Core Engine Light Angular Momentum Engine Power Core Light Nuclear Core Reactor Light Antimatter Reactor Propulsion Light Treads Treads Light Treads Leg Improved Aluminum Leg Wheel Armored Huge Wheel Hover Unit Gravmag System Flight Unit Field Propulsion Array Utility Experimental Targeting Computer Device Improved Cooling System Storage Large Storage Unit Processor Experimental Targeting Computer Protection Improved Power Shielding Weapon Coil Gun Energy Gun Medium Laser Energy Cannon Heavy Plasma Cannon Ballistic Gun Coil Gun Launcher Improved Grenade Launcher Special Weapon Improved Remote Datajack Piercing Weapon Enhanced Force Lance Build | -11 -10 -10 -10 -9 -8 -7 -7 -7 -6 -6 -6 -5 -4 -3 ------- Run | Scr Mat Min Exi Min Mat Fac Was Fac Fac Was Fac Fac Fac Res Slots Evolved 14 | . . . . . 4 2 . . 2 . . 2 2 2 Power 1 | . . . . . . . . . . . . . 1 . Propulsion 2 | . . . . . 1 . . . . . . 1 . . Utility 8 | . . . . . 2 2 . . 1 . . 1 . 2 Weapon 3 | . . . . . 1 . . . 1 . . . 1 . Parts Attached 233 | 7 8 4 3 1 32 2 8 20 8 3 33 20 14 70 Power 21 | 1 1 . . . 1 . 1 1 1 . 3 2 1 9 Engine 6 | 1 . . . . . . 1 1 1 . 2 . . . Core 9 | . 1 . . . 1 . . . . . 1 2 1 3 Reactor 6 | . . . . . . . . . . . . . . 6 Propulsion 40 | 2 1 . . . 6 . 1 6 2 . 7 4 1 10 Treads 29 | 2 1 . . . 6 . . 2 1 . 5 4 1 7 Leg 6 | . . . . . . . . 3 1 . 1 . . 1 Wheel 3 | . . . . . . . . . . . 1 . . 2 Hover 1 | . . . . . . . . 1 . . . . . . Flight 1 | . . . . . . . 1 . . . . . . . Utility 73 | 2 2 . 3 . 8 2 1 10 4 3 13 7 2 16 Device 38 | . . . . . 5 2 . 5 2 1 5 4 2 12 Storage 10 | 2 2 . 3 . . . 1 . . . 1 . . 1 Processor 8 | . . . . . 2 . . 1 . . 4 1 . . Hackware . | . . . . . . . . . . . . . . . Protection 17 | . . . . . 1 . . 4 2 2 3 2 . 3 Artifact . | . . . . . . . . . . . . . . . Weapon 99 | 2 4 4 . 1 17 . 5 3 1 . 10 7 10 35 Energy Gun 44 | 2 4 2 . 1 14 . . 3 . . 4 . 3 11 Energy Cannon 4 | . . . . . . . 1 . 1 . 1 . . 1 Ballistic Gun 35 | . . . . . 1 . . . . . 5 6 6 17 Ballistic Cannon . | . . . . . . . . . . . . . . . Launcher 10 | . . 2 . . 2 . 4 . . . . . . 2 Special Weapon 1 | . . . . . . . . . . . . 1 . . Impact Weapon . | . . . . . . . . . . . . . . . Slashing Weapon . | . . . . . . . . . . . . . . . Piercing Weapon 5 | . . . . . . . . . . . . . 1 4 Special Melee Weapon . | . . . . . . . . . . . . . . . Unidentified Prototypes 5 | . . . . . 1 . . . . . 1 1 . 2 Parts Lost 87 | . 2 . . 1 9 . 7 3 . 6 . 11 6 42 Power 7 | . . . . . . . 1 . . 1 . . . 5 Propulsion 19 | . . . . . 2 . 1 . . 1 . 4 1 10 Utility 19 | . . . . . 1 . 3 1 . 2 . 3 1 8 Weapon 42 | . 2 . . 1 6 . 2 2 . 2 . 4 4 19 Highest Loss Streak 11 | . 2 . . 1 9 . 7 2 . 6 . 4 5 11 Average Slot Usage (%) 91 | . 100 100 100 100 96 100 60 85 96 84 86 98 89 85 Engine 2 | . 5 . . . . . . 7 6 5 4 . . . Core 5 | . 8 14 14 14 9 7 4 . . . 1 5 6 2 Reactor 1 | . . . . . . . . . . . . . . 5 Treads 16 | . 28 28 28 28 25 23 12 4 15 16 14 21 14 9 Leg 1 | . . . . . . . . 12 3 . . . . . Device 11 | . . . . . 7 15 8 17 19 20 13 12 14 16 Storage 12 | . 28 28 28 28 18 15 8 7 6 5 5 5 5 8 Processor 8 | . . . . . 9 15 9 . . . 13 16 15 13 Protection 4 | . . . . . . . . 10 20 12 5 9 5 2 Energy Gun 15 | . 28 28 28 28 25 23 1 19 20 16 9 5 5 7 Ballistic Gun 7 | . . . . . . . . . . . 11 16 16 13 Naked Turns 80 | . . . . . . . 25 . . 23 11 . . 21 Heaviest Build 113 | 17 44 44 72 72 79 77 86 55 71 65 58 51 58 113 Greatest Support 145 | 40 40 40 40 40 60 60 60 48 68 68 86 114 126 145 Greatest Overweight (x) 27 | 4 1 1 1 1 1 1 1 2 1 4 1 . . 27 Average Overweight (x) . | . . 1 1 1 1 1 . . . . . . . . Largest Inventory Capacity 20 | 8 14 14 20 20 20 20 20 4 4 4 10 10 10 16 Average Capacity 12 | 5 11 14 15 20 20 20 13 4 4 4 9 10 10 15 Most Carried 20 | 2 14 14 16 15 20 19 18 4 4 4 10 10 10 16 Average Carried 10 | 1 9 14 13 12 16 18 11 3 3 3 6 9 8 13 Final Capacity 20 | 8 14 14 20 20 20 20 4 4 4 4 10 10 10 4 Final Carried 20 | 2 14 14 15 13 20 18 3 4 3 3 10 9 10 4 Class Distribution -------------------- 39% | Scavenger-Gunner 22% | Mutant 9% | Hauler-Skirmisher 7% | Tank 5% | Scavenger-Mutant 4% | Hauler-Mutant 4% | Skirmisher 3% | Scavenger-Skirmisher Dominant Class ---------------- Mutant | -10/Materials Mutant | -10/Mines Mutant | -10/Exiles Hauler-Mutant | -9/Mines Hauler-Skirmisher | -8/Materials Hauler-Skirmisher | -7/Factory Hauler-Skirmisher | -7/Waste Tank | -7/Factory Tank | -6/Factory Scavenger-Mutant | -6/Waste Scavenger-Gunner | -6/Factory Scavenger-Gunner | -5/Factory Scavenger-Gunner | -4/Factory Scavenger-Gunner | -3/Research Resources | -11 -10 -10 -10 -9 -8 -7 -7 -7 -6 -6 -6 -5 -4 -3 ----------- Run | Scr Mat Min Exi Min Mat Fac Was Fac Fac Was Fac Fac Fac Res Matter Collected 5698 | 254 299 52 62 38 309 . 168 263 134 . 803 668 402 2246 Remotely . | . . . . . . . . . . . . . . . Salvage Created 9183 | 83 299 42 . 34 845 . 219 417 327 . 869 1125 523 4400 Parts 459 | 3 23 8 . 3 42 . . 20 14 . 73 50 24 199 Haulers Intercepted 4 | . . . . . 2 . . 1 . . . . . 1 Recyclers Shooed 8 | . . 1 . . 1 . . . . . 1 2 . 3 Parts Field Recycled . | . . . . . . . . . . . . . . . Retrieved Matter . | . . . . . . . . . . . . . . . Parts Self-Destructed . | . . . . . . . . . . . . . . . Prevented . | . . . . . . . . . . . . . . . Kills | -11 -10 -10 -10 -9 -8 -7 -7 -7 -6 -6 -6 -5 -4 -3 ------- Run | Scr Mat Min Exi Min Mat Fac Was Fac Fac Was Fac Fac Fac Res Combat Hostiles Destroyed 146 | . 10 6 . 1 20 . 1 8 5 . 17 16 7 55 Guns 125 | . 10 1 . 1 13 . . 8 3 . 16 15 7 51 Cannons 3 | . . . . . . . . . 2 . 1 . . . AOE 17 | . . 5 . . 7 . 1 . . . . . . 4 Classes Destroyed 14 | 1 4 . . . 5 . 1 1 . . . . 1 1 Worker 10 | . 1 . . . 2 . . . . . 1 . . 6 Builder 7 | . . . . . 1 . . . . . . 2 . 4 Hauler 4 | . . . . . 2 . . 1 . . . . . 1 Recycler 8 | 1 . . . . . . . . . . 1 . . 6 Operator 1 | . . . . . 1 . . . . . . . . . Watcher 5 | . 1 . . . . . . . . . 4 . . . Swarmer 41 | . 6 6 . . 5 . . 2 . . 10 . . 12 Grunt 48 | . 4 . . 1 11 . . 2 1 . . 7 1 21 Brawler 1 | . . . . . . . . . . . . . . 1 Sentry 19 | . . . . . 3 . . 2 2 . 2 4 1 5 Hunter 11 | . . . . . 1 . . 1 . . 2 3 2 2 Programmer 23 | . . . . . . . . 1 2 . 3 2 2 13 Behemoth 2 | . . . . . . . . . . . . . 1 1 Compactor 1 | . . . . . . . 1 . . . . . . . Best Kill Streak 10 | 1 3 3 . 1 10 . 1 3 3 . 4 4 2 9 Combat Bots Only 9 | . 3 3 . 1 6 . 1 2 3 . 4 4 2 9 Max Kills in Single Turn 4 | 1 2 2 . 1 4 . 1 1 1 . 1 2 1 3 Gunslinging 1 | . 1 . . . 1 . . . . . . . . 1 Exploded 3 | . . 2 . . 3 . 1 . . . . . . 2 Melee . | . . . . . . . . . . . . . . . Uniques/NPCs Destroyed . | . . . . . . . . . . . . . . . Combat | -11 -10 -10 -10 -9 -8 -7 -7 -7 -6 -6 -6 -5 -4 -3 -------- Run | Scr Mat Min Exi Min Mat Fac Was Fac Fac Was Fac Fac Fac Res Damage Taken 16124 | . 386 55 . 99 1229 . 436 645 298 246 1195 1912 1117 8506 Core 2343 | . 34 9 . . 99 . 166 60 32 95 234 162 134 1318 Absorbed by Shields 99 | . . . . . . . . . 99 . . . . . Reduced by Siege Mode 276 | . . . . . . . . . . . . . 6 270 Core Remaining (%) 79 | 100 . . . 82 82 . . 67 . . 57 83 88 . Volleys Fired 372 | 5 26 5 . 8 34 . 5 24 28 . 47 45 23 122 Largest 5 | 2 2 2 . 2 3 . 3 3 4 . 4 4 5 5 Hottest 735 | 100 100 90 . 90 195 . 102 168 256 . 203 193 258 735 Shots Fired 1224 | 10 52 9 . 16 87 . 13 66 61 . 129 166 103 512 Gun 1160 | 10 52 6 . 16 84 . . 64 35 . 122 164 102 505 Cannon 37 | . . . . . . . . 2 26 . 7 . . 2 Launcher 24 | . . 3 . . 3 . 13 . . . . . . 5 Special 3 | . . . . . . . . . . . . 2 1 . Kinetic 654 | . . . . . 4 . . . . . 76 139 79 356 Thermal 448 | 10 52 6 . 16 72 . . 46 49 . 28 3 23 143 Explosive 24 | . . 3 . . 3 . 13 . . . . . . 5 Electromagnetic 95 | . . . . . 8 . . 20 12 . 25 22 . 8 Robot Hit Streak 72 | 6 6 10 . 4 19 . 10 20 18 . 23 51 18 72 Robot Miss Streak 4 | 1 3 2 . 1 4 . . 1 1 . 4 3 1 2 Penetration Max 1 | . . . . . . . . . . . 1 1 1 1 Secondary Targets 22 | . 1 . . . 2 . . 1 . . . . 1 17 Max Gunslinging Chain 1 | . 1 . . . 1 . . 1 . . . . 1 1 Shots Hit Robots 937 | 7 31 4 . 12 59 . 7 53 36 . 89 140 84 415 Core Hits 427 | 2 17 10 . 4 46 . 4 20 13 . 46 72 21 172 Critical Hits 21 | . . . . . . . . . . . . 4 4 13 Critical Kills 8 | . . . . . . . . . . . . 1 1 6 Critical Parts Destroyed 12 | . . . . . . . . . . . . 3 3 6 Melee Attacks 25 | . . . . . . . . . . . . . 2 23 Impact . | . . . . . . . . . . . . . . . Slashing . | . . . . . . . . . . . . . . . Piercing 25 | . . . . . . . . . . . . . 2 23 Sneak Attacks 3 | . . . . . . . . . . . . . . 3 Combat Hostiles . | . . . . . . . . . . . . . . . Follow-up Attacks . | . . . . . . . . . . . . . . . Damage Inflicted 25202 | 88 360 262 . 156 1631 . 1240 904 597 . 1940 3099 1884 13041 Guns 20451 | 87 360 36 . 153 972 . . 781 418 . 1687 3088 1884 10985 Cannons 400 | . . . . . . . . 91 177 . 91 . . 41 Explosions 3638 | . . 202 . . 601 . 1240 32 . . 149 . . 1414 Melee 516 | . . . . . . . . . . . . . . 516 Ramming 197 | 1 . 24 . 3 58 . . . 2 . 13 11 . 85 Kinetic 12464 | . . . . . 25 . . . . . 855 2594 1389 7601 Thermal 7347 | 87 360 36 . 153 936 . . 740 522 . 666 87 495 3265 Explosive 3417 | . . 202 . . 561 . 1240 . . . . . . 1414 Electromagnetic 1261 | . . . . . 51 . . 164 73 . 406 407 . 160 Impact . | . . . . . . . . . . . . . . . Slashing . | . . . . . . . . . . . . . . . Piercing 516 | . . . . . . . . . . . . . . 516 Highest Corruption 21 | . 2 2 2 2 . . . 1 . 12 14 5 3 21 Average Corruption 7 | . 2 2 2 2 . . . 1 . 7 12 4 2 9 Corruption Purged . | . . . . . . . . . . . . . . . Effects 244 | . 2 3 6 4 . . . 1 . 4 86 6 4 128 Message Errors 36 | . 1 2 3 1 . . . . . . 13 . . 16 Matter Fused 42 | . . . . . . . . . . 2 17 1 . 22 Heat Flow Errors 15 | . . 1 . 2 . . . . . . 7 . 1 4 Energy Discharges 19 | . . . . . . . . 1 . 1 9 2 . 6 Data Loss (minor) 18 | . . . 3 1 . . . . . . 5 . 1 8 Data Loss (major) 6 | . . . . . . . . . . . 3 1 . 2 Misfires 4 | . . . . . . . . . . . 3 . . 1 Misdirections 18 | . . . . . . . . . . 1 9 . . 8 Targeting Errors 76 | . 1 . . . . . . . . . 18 1 2 54 Weapon Failures 10 | . . . . . . . . . . . 2 1 . 7 Overload Shots 3 | . . . . . . . . . . . . . . 3 Overflow Damage 74 | . . . . . 17 . 12 5 . . . . . 40 Projectiles 5 | . . . . . . . . 5 . . . . . . Explosions 69 | . . . . . 17 . 12 . . . . . . 40 Melee . | . . . . . . . . . . . . . . . Knockbacks 3 | . . . . . . . . . . . 1 . . 2 Impact 3 | . . . . . . . . . . . 1 . . 2 Kinetic . | . . . . . . . . . . . . . . . Secondary . | . . . . . . . . . . . . . . . Self-Inflicted Damage 446 | . . . . . 121 . 158 54 . . 111 . . 2 Shots 11 | . . . . . 3 . 4 2 . . 2 . . . Rammed 32 | 1 1 7 . 1 5 . . . 1 . 2 3 . 11 Targets Rammed 36 | 1 1 7 . 1 6 . . . 1 . 3 3 . 13 Kicked . | . . . . . . . . . . . . . . . Crushed 4 | . . . . . 1 . . . . . 1 . . 2 Highest Temperature 555 | 156 273 142 . 232 330 . . 234 555 . 249 . 22 379 Average Temperature 96 | 67 84 35 . 89 122 . . 95 159 . 76 . 22 88 Received Heat Transfer 2169 | . 102 . . 54 477 . . 210 75 . 12 315 84 840 Effects 5 | . 1 . . . 1 . . . 3 . . . . . Shutdowns 1 | . . . . . . . . . 1 . . . . . Interference 2 | . 1 . . . 1 . . . . . . . . . Matter Decay 1 | . . . . . . . . . 1 . . . . . Damage (minor) 1 | . . . . . . . . . 1 . . . . . Siege Activations 8 | . . . . . . . . . . . . . 1 7 Total Turns 152 | . . . . . . . . . . . . . 7 145 Longest Duration 32 | . . . . . . . . . . . . . 7 32 Robots Corrupted 1 | . . . . . . . . . . . . 1 . . Combat Hostiles 1 | . . . . . . . . . . . . 1 . . Parts Fried 4 | . . . . . . . . . . . 1 2 . 1 Impact Corruptions . | . . . . . . . . . . . . . . . Robots Melted . | . . . . . . . . . . . . . . . Combat Hostiles . | . . . . . . . . . . . . . . . Parts Melted 29 | . 1 . . . 1 . . 3 3 . . 1 . 20 Heat Transferred 12873 | 259 1002 99 . 397 1974 . . 1295 842 . 1111 200 666 5028 Parts Sabotaged . | . . . . . . . . . . . . . . . Parts Stolen . | . . . . . . . . . . . . . . . Parts Stripped . | . . . . . . . . . . . . . . . Power Chain Reactions 4 | . . . . . 1 . . 2 . . 1 . . . Missiles Intercepted . | . . . . . . . . . . . . . . . Alert | -11 -10 -10 -10 -9 -8 -7 -7 -7 -6 -6 -6 -5 -4 -3 ------- Run | Scr Mat Min Exi Min Mat Fac Was Fac Fac Was Fac Fac Fac Res Peak Influence 890 | 5 127 176 . 128 377 171 80 563 305 75 367 377 243 890 Initial 241 | . 3 21 . . 49 171 59 . 241 75 . 158 97 77 Average 239 | . 45 125 . 101 141 171 39 393 215 53 216 238 136 400 Maximum Alert Level 3 | . . . . . 1 . . 2 1 . 1 1 1 3 Low Security (%) 50 | 100 100 100 . 100 62 100 100 13 14 100 31 32 79 40 Level 1 30 | . . . . . 37 . . 13 85 . 68 67 20 7 Level 2 14 | . . . . . . . . 72 . . . . . 32 Level 3 5 | . . . . . . . . . . . . . . 19 Level 4 . | . . . . . . . . . . . . . . . Level 5 . | . . . . . . . . . . . . . . . High Security . | . . . . . . . . . . . . . . . Max Security . | . . . . . . . . . . . . . . . Squads Dispatched 39 | . 1 . . . 5 . . 5 4 . 4 4 3 13 Investigation 4 | . . . . . 1 . . 1 . . 1 . . 1 Extermination 10 | . . . . . . . . . 1 . 3 1 1 4 Reinforcement 16 | . 1 . . . 3 . . 1 . . . 3 2 6 Assault 2 | . . . . . . . . . . . . . . 2 Garrison 7 | . . . . . 1 . . 3 3 . . . . . Intercept . | . . . . . . . . . . . . . . . Construction Impeded 4 | . . . . . 1 . . . . . . . . 3 Haulers Reinforced 3 | . . . . . . . . . . . . 1 . 2 Stealth | -11 -10 -10 -10 -9 -8 -7 -7 -7 -6 -6 -6 -5 -4 -3 --------- Run | Scr Mat Min Exi Min Mat Fac Was Fac Fac Was Fac Fac Fac Res Distress Signals 9 | . . . . . 1 . . 1 . . 2 . . 5 Communications Jammed . | . . . . . . . . . . . . . . . Distress Signals . | . . . . . . . . . . . . . . . Times Spotted 248 | . 19 6 . 7 26 . 5 12 5 4 32 21 13 98 Peak Tracking Total 14 | . 4 3 . 3 5 . 4 3 2 4 5 6 5 14 Tactical Retreats 20 | . . . . . 5 . . 2 . . 2 2 1 8 Traps | -11 -10 -10 -10 -9 -8 -7 -7 -7 -6 -6 -6 -5 -4 -3 ------- Run | Scr Mat Min Exi Min Mat Fac Was Fac Fac Was Fac Fac Fac Res Traps Triggered 5 | . 1 . . . 1 1 . . 1 . 1 . . . Indirectly . | . . . . . . . . . . . . . . . Trap Hack Attempts . | . . . . . . . . . . . . . . . Triggered . | . . . . . . . . . . . . . . . Disarmed . | . . . . . . . . . . . . . . . Reprogrammed . | . . . . . . . . . . . . . . . Reused . | . . . . . . . . . . . . . . . Traps Extracted . | . . . . . . . . . . . . . . . Installed . | . . . . . . . . . . . . . . . Triggered . | . . . . . . . . . . . . . . . Machines | -11 -10 -10 -10 -9 -8 -7 -7 -7 -6 -6 -6 -5 -4 -3 ---------- Run | Scr Mat Min Exi Min Mat Fac Was Fac Fac Was Fac Fac Fac Res Machines Disabled 17 | . . 1 . . 2 . . 1 . . 8 . 2 3 Max in Single Turn 6 | . . 1 . . 1 . . 1 . . 6 . 1 2 Garrison Access 2 | . . . . . 1 . . . . . . 1 . . Machines Sabotaged . | . . . . . . . . . . . . . . . Garrisons Compromised . | . . . . . . . . . . . . . . . Overloaded Fab Kills . | . . . . . . . . . . . . . . . Fab Network Shutdowns 1 | . . . . . . . . 1 . . . . . . Hacking | -11 -10 -10 -10 -9 -8 -7 -7 -7 -6 -6 -6 -5 -4 -3 --------- Run | Scr Mat Min Exi Min Mat Fac Was Fac Fac Was Fac Fac Fac Res Machines Accessed 23 | . 5 . 1 . 6 . . 4 2 . 1 2 . 2 Terminals 14 | . 4 . . . 5 . . 1 . . 1 1 . 2 Fabricators 3 | . . . . . . . . 2 1 . . . . . Repair Stations 1 | . . . . . . . . 1 . . . . . . Recycling Units 1 | . 1 . . . . . . . . . . . . . Scanalyzers 1 | . . . . . . . . . 1 . . . . . Garrison Access 2 | . . . . . 1 . . . . . . 1 . . Total Hacks 45 | . 8 . 1 . 14 . . 7 5 . 3 3 . 4 Successful 19 | . 6 . 1 . 7 . . 3 1 . . 1 . . Failed 26 | . 2 . . . 7 . . 4 4 . 3 2 . 4 Catastrophic 5 | . 2 . . . . . . . . . 1 . . 2 Database Lockouts . | . . . . . . . . . . . . . . . Manual 4 | . 1 . 1 . 1 . . . . . . 1 . . Terminals 29 | . 6 . . . 12 . . 2 . . 3 2 . 4 Fabricators 6 | . . . . . . . . 4 2 . . . . . Repair Stations 1 | . . . . . . . . 1 . . . . . . Recycling Units 2 | . 2 . . . . . . . . . . . . . Scanalyzers 3 | . . . . . . . . . 3 . . . . . Garrison Access 3 | . . . . . 2 . . . . . . 1 . . Terminal Hacks 12 | . 4 . 1 . 6 . . 1 . . . . . . Record 1 | . . . . . 1 . . . . . . . . . Robot Analysis 1 | . . . . . 1 . . . . . . . . . Prototype ID Bank 1 | . . . . . 1 . . . . . . . . . Alert Level 2 | . 1 . . . 1 . . . . . . . . . Unreport Threat 1 | . . . . . 1 . . . . . . . . . Locate Traps 2 | . 1 . . . . . . 1 . . . . . . Zone Layout 3 | . 2 . . . 1 . . . . . . . . . EX-Prototype ID Bank 1 | . . . 1 . . . . . . . . . . . Fabricator Hacks 1 | . . . . . . . . 1 . . . . . . Build 1 | . . . . . . . . 1 . . . . . . Repair Station Hacks 1 | . . . . . . . . 1 . . . . . . Refit 1 | . . . . . . . . 1 . . . . . . Recycling Unit Hacks 2 | . 2 . . . . . . . . . . . . . Report Inventory 1 | . 1 . . . . . . . . . . . . . Retrieve Matter 1 | . 1 . . . . . . . . . . . . . Scanalyzer 1 | . . . . . . . . . 1 . . . . . Insert Component 1 | . . . . . . . . . 1 . . . . . Garrison Access Hacks 2 | . . . . . 1 . . . . . . 1 . . Seal Access 2 | . . . . . 1 . . . . . . 1 . . Unauthorized Hacks . | . . . . . . . . . . . . . . . Terminals . | . . . . . . . . . . . . . . . Fabricators . | . . . . . . . . . . . . . . . Repair Stations . | . . . . . . . . . . . . . . . Recycling Units . | . . . . . . . . . . . . . . . Scanalyzers . | . . . . . . . . . . . . . . . Garrison Access . | . . . . . . . . . . . . . . . Data Cores Recovered . | . . . . . . . . . . . . . . . Used . | . . . . . . . . . . . . . . . Hacking Detections 16 | . 4 . . . 4 . . 2 2 . 1 1 . 2 Full Trace Events 3 | . . . . . . . . 1 . . 1 . . 1 Feedback Events . | . . . . . . . . . . . . . . . Feedback Blocked . | . . . . . . . . . . . . . . . Robot Schematics Acquired . | . . . . . . . . . . . . . . . Robots Built . | . . . . . . . . . . . . . . . Matter . | . . . . . . . . . . . . . . . Time . | . . . . . . . . . . . . . . . Total Robot Build Rating . | . . . . . . . . . . . . . . . Part Schematics Acquired . | . . . . . . . . . . . . . . . Parts Built 1 | . . . . . . . . 1 . . . . . . Matter 212 | . . . . . . . . 212 . . . . . . Time 53 | . . . . . . . . 53 . . . . . . Total Part Build Rating 6 | . . . . . . . . 6 . . . . . . Parts Repaired . | . . . . . . . . . . . . . . . Time . | . . . . . . . . . . . . . . . Parts Recycled . | . . . . . . . . . . . . . . . Recycled Matter . | . . . . . . . . . . . . . . . Retrieved Matter . | . . . . . . . . . . . . . . . Retrieved Components . | . . . . . . . . . . . . . . . Parts Scanalyzed 1 | . . . . . . . . . 1 . . . . . Part Schematics Acquired . | . . . . . . . . . . . . . . . Parts Damaged . | . . . . . . . . . . . . . . . Bothacking | -11 -10 -10 -10 -9 -8 -7 -7 -7 -6 -6 -6 -5 -4 -3 ------------ Run | Scr Mat Min Exi Min Mat Fac Was Fac Fac Was Fac Fac Fac Res Used RIF Installer . | . . . . . . . . . . . . . . . Robots Hacked 3 | . . . . . . . . . . . . 2 1 . Non-combat 2 | . . . . . . . . . . . . 2 . . Combat 1 | . . . . . . . . . . . . . 1 . Robot Hacks Applied 3 | . . . . . . . . . . . . 2 1 . parse_system 2 | . . . . . . . . . . . . 1 1 . find_fabricator 1 | . . . . . . . . . . . . 1 . . Relay Couplers Released 3 | . . . . . . . . . 3 . . . . . Programmers 3 | . . . . . . . . . 3 . . . . . Robots Rewired . | . . . . . . . . . . . . . . . Allies Hacked . | . . . . . . . . . . . . . . . Hacks Repelled . | . . . . . . . . . . . . . . . Allies | -11 -10 -10 -10 -9 -8 -7 -7 -7 -6 -6 -6 -5 -4 -3 -------- Run | Scr Mat Min Exi Min Mat Fac Was Fac Fac Was Fac Fac Fac Res Total Allies 1 | . . . . . . . 1 . . . . . . . Largest Group 1 | . . . . . . . 1 . . . . . . . Highest-Rated Group 31 | . . . . . . . 31 . . . . . . . Highest-Rated Ally 31 | . . . . . . . 31 . . . . . . . Total Orders 12 | . . . . 1 . . . . . 4 3 2 . 2 STAY 1 | . . . . 1 . . . . . . . . . . EXPLORE 8 | . . . . . . . . . . 3 2 2 . 1 RETURN 3 | . . . . . . . . . . 1 1 . . 1 Ally Attacks 27 | . . . . 9 . . 18 . . . . . . . Total Damage 839 | . . . . 458 . . 381 . . . . . . . Kills 4 | . . . . 4 . . . . . . . . . . Allies Corrupted . | . . . . . . . . . . . . . . . Allies Melted . | . . . . . . . . . . . . . . . Turrets Deployed 3 | . . . . 2 . . 1 . . . . . . . Intel | -11 -10 -10 -10 -9 -8 -7 -7 -7 -6 -6 -6 -5 -4 -3 ------- Run | Scr Mat Min Exi Min Mat Fac Was Fac Fac Was Fac Fac Fac Res Robot Analysis Total 1 | . . . . . 1 . . . . . . . . . Derelict Logs Recovered 2 | . . 1 . 1 . . . . . . . . . . Drone Launches 9 | . . . . . . . . . . 3 3 2 . 1 Drone Recoveries 3 | . . . . . . . . . . 1 1 . . 1 Exploration | -11 -10 -10 -10 -9 -8 -7 -7 -7 -6 -6 -6 -5 -4 -3 ------------- Run | Scr Mat Min Exi Min Mat Fac Was Fac Fac Was Fac Fac Fac Res Turns Passed 10754 | 134 854 251 731 391 1016 28 131 712 778 177 1470 815 529 2737 Spaces Moved 5244 | 67 435 121 398 196 411 15 126 457 308 99 823 359 247 1182 Core 183 | 14 . . . . . . 62 . . 47 21 . . 39 Treads 4284 | 53 435 121 398 196 411 15 31 91 308 52 480 359 247 1087 Legs 211 | . . . . . . . . 162 . . . . . 49 Wheels 329 | . . . . . . . . . . . 322 . . 7 Hover . | . . . . . . . . . . . . . . . Flight 237 | . . . . . . . 33 204 . . . . . . Fastest Speed 40 | 50 160 180 180 180 180 183 40 40 160 50 50 160 160 50 Average Speed 155 | 157 170 180 180 180 181 183 80 99 172 110 135 160 160 168 Slowest Speed 1400 | 250 180 180 180 180 185 183 183 200 180 250 160 160 160 1400 Overloaded Moves . | . . . . . . . . . . . . . . . Propulsion Burnouts . | . . . . . . . . . . . . . . . Robots Hopped 1 | . . . . 1 . . . . . . . . . . Cave-ins Triggered . | . . . . . . . . . . . . . . . Exploration Rate (%) 34 | 5 64 39 62 51 40 1 75 13 7 88 23 11 7 34 Regions Visited 14 Branch Regions 3 Pre-discovered Areas 1 | . . . . 1 . . . . . . . . . . Known Exits Taken 4 | . . . . . 1 . . . . . 1 1 1 . Unknown Exits Taken 6 | 1 1 1 1 1 . . . 1 . . . . . . Scrap Searched 3 | . . 1 . 2 . . . . . . . . . . Spaces Dug 32 | . . . . . . . . . 15 . . . 2 15 Terrain Destroyed 272 | . . 19 . . 22 . 47 6 21 . 23 5 37 92 Melee 17 | . . . . . . . . . . . . . 2 15 Projectile 57 | . . . . . . . . . 21 . 4 5 6 21 AOE 198 | . . 19 . . 22 . 47 6 . . 19 . 29 56 Terrain Rammed . | . . . . . . . . . . . . . . . Walls Destroyed . | . . . . . . . . . . . . . . . Machines Disabled . | . . . . . . . . . . . . . . . Actions | -11 -10 -10 -10 -9 -8 -7 -7 -7 -6 -6 -6 -5 -4 -3 --------- Run | Scr Mat Min Exi Min Mat Fac Was Fac Fac Was Fac Fac Fac Res Total 6970 | 82 497 138 416 218 603 17 143 663 515 167 1076 490 317 1628 Wait 830 | . 13 . . 9 100 . 2 147 154 63 131 39 22 150 Move 5230 | 66 434 120 397 193 410 15 125 456 308 98 822 358 246 1182 Hop 1 | . . . . 1 . . . . . . . . . . Pick Up 104 | 3 11 1 7 2 11 . 1 5 5 . 14 6 5 33 Fast Attach 88 | 6 1 . . . 5 . 2 15 3 1 21 2 7 25 Attach 78 | 1 2 . . 1 10 2 3 4 3 2 5 12 6 27 Detach 23 | . 1 . . . 2 . . 2 2 2 6 2 2 4 Swap 67 | . 5 4 3 . 17 . 3 1 2 . 7 6 1 18 Drop 99 | . 3 1 9 3 8 . 2 9 9 1 19 2 3 30 Fire 372 | 5 26 5 . 8 34 . 5 24 28 . 47 45 23 122 Melee 25 | . . . . . . . . . . . . . 2 23 Ram 5 | . . . . . . . . . . . 1 . . 4 Kick . | . . . . . . . . . . . . . . . Crush 33 | 1 1 7 . 1 6 . . . 1 . 3 3 . 10 Escape Stasis . | . . . . . . . . . . . . . . . Rewire 15 | . . . . . . . . . . . . 15 . . Trap . | . . . . . . . . . . . . . . . Miscellaneous . | . . . . . . . . . . . . . . . Route ------- -11/Scrapyard -10/Materials (discovered 2 exits: [*Mat] / [*Min]) -10/Mines (discovered 3 exits: [*Mat x2] / *Exi) -10/Exiles -9/Mines -8/Materials -7/Factory -7/Waste -7/Factory -6/Factory -6/Waste -6/Factory -5/Factory -4/Factory -3/Research (discovered 2 exits: *Qua x2) History --------- Turn | Location | Event 26 | -11/Scrapyard | Discovered new exit (range 15) 135 | -11/Scrapyard | Entered Materials 303 | -10/Materials | Build established: Mutant 776 | -10/Materials | Discovered new exit (range 16) 920 | -10/Materials | Discovered new exit (range 5) 989 | -10/Materials | Entered Mines 995 | -10/Mines | Discovered new exit (range 8) 1076 | -10/Mines | Discovered new exit (range 5) 1137 | -10/Mines | Learned Materials garrison access intel 1232 | -10/Mines | Deemed a non-threat by the Exiles lab entrance 1232 | -10/Mines | Discovered new exit (range 5) 1240 | -10/Mines | Entered Exiles 1287 | -10/Exiles | Met 8R-AWN 1316 | -10/Exiles | Met EX-HEX 1370 | -10/Exiles | Met EX-BIN 1390 | -10/Exiles | Aligned with FarCom system 1392 | -10/Exiles | Given EX-Vault access code 1433 | -10/Exiles | Opened EX-Vault 1442 | -10/Exiles | Found Deploy-a-Sentry 1446 | -10/Exiles | Found Deploy-a-Sentry 1458 | -10/Exiles | Found Deploy-a-Sentry 1493 | -10/Exiles | Warned to stay clear of 0b10 Research branches 1547 | -10/Exiles | Met EX-DEC 1947 | -10/Exiles | Discovered new exit (range 15) 1971 | -10/Exiles | Left Exiles lab with Deploy-a-Sentry 1971 | -10/Exiles | Entered Mines 2014 | -9/Mines | Learned location of Storage (-8) 2025 | -9/Mines | DAS Turret deployed 2070 | -9/Mines | DAS Turret deployed 2200 | -9/Mines | Build established: Hauler-Mutant 2316 | -9/Mines | Discovered new exit (range 9) 2362 | -9/Mines | Entered Materials 2362 | -8/Materials | Evolved 4 slots: Propulsion x1, Utility x2, Weapon x1 2363 | -8/Materials | Loaded intel: 1 garrison access location 2695 | -8/Materials | Build established: Hauler-Skirmisher 2941 | -8/Materials | Garrison activated, responded to threat 3019 | -8/Materials | Lost 9 parts (2n1u6w) 3338 | -8/Materials | Discovered new exit (range 16) 3365 | -8/Materials | Identified exit to Factory 3378 | -8/Materials | Entered Factory 3378 | -7/Factory | Evolved 2 slots: Utility x2 3406 | -7/Factory | Sucked down chute 3406 | -7/Factory | Entered Waste 3407 | -7/Waste | Met a frightened Derelict 3427 | -7/Waste | Spotted C-40 Crusher 3436 | -7/Waste | Destroyed C-40 Crusher 3445 | -7/Waste | Spotted C-40 Crusher 3450 | -7/Waste | Spotted C-40 Crusher 3456 | -7/Waste | Spotted C-40 Crusher 3476 | -7/Waste | Crushed by Compactor (1 part destroyed, 2 dropped) 3477 | -7/Waste | Spotted C-40 Crusher 3479 | -7/Waste | Crushed by Compactor (1 part destroyed, 1 dropped) 3482 | -7/Waste | Crushed by Compactor (1 part destroyed, 2 dropped) 3485 | -7/Waste | Crushed by Compactor (1 part destroyed, 1 dropped) 3488 | -7/Waste | DAS Turret deployed 3493 | -7/Waste | Crushed by Compactor (1 part destroyed) 3497 | -7/Waste | Spotted C-40 Crusher 3524 | -7/Waste | Lost 7 parts (1p1n3u2w) 3528 | -7/Waste | Discovered new exit (range 12) 3537 | -7/Waste | Entered Factory 3634 | -7/Factory | Local fabrication network quarantined 3656 | -7/Factory | Fabricated Adv. Cooling System (x1) 3993 | -7/Factory | Garrison activated, responded to threat 4142 | -7/Factory | Discovered new exit (range 15) 4183 | -7/Factory | Build established: Tank 4249 | -7/Factory | Entered another Factory area 4249 | -6/Factory | Evolved 2 slots: Utility x1, Weapon x1 4251 | -6/Factory | Discovered new exit (range 12) 4589 | -6/Factory | Garrison activated, responded to threat 5027 | -6/Factory | Sucked down chute 5027 | -6/Factory | Entered Waste 5042 | -6/Waste | EMP discharged 5135 | -6/Waste | Spotted C-40 Crusher 5135 | -6/Waste | Spotted C-40 Crusher 5142 | -6/Waste | EMP discharged 5142 | -6/Waste | System corruption reached 10% 5158 | -6/Waste | Spotted C-40 Crusher 5162 | -6/Waste | Build established: Scavenger-Mutant 5169 | -6/Waste | Spotted C-40 Crusher 5170 | -6/Waste | Crushed by Compactor (1 part destroyed, 2 dropped) 5173 | -6/Waste | Crushed by Compactor (1 part destroyed, 1 dropped) 5178 | -6/Waste | Crushed by Compactor (1 part destroyed, 2 dropped) 5178 | -6/Waste | Crushed by Compactor (1 part destroyed, 2 dropped) 5181 | -6/Waste | Crushed by Compactor (1 part destroyed, 2 dropped) 5197 | -6/Waste | Discovered new exit (range 12) 5204 | -6/Waste | Entered Factory 5212 | -6/Factory | Lost 6 parts (1p1n2u2w) 5999 | -6/Factory | Build established: Scavenger-Skirmisher 6106 | -6/Factory | Found Prototype Processor 6106 | -6/Factory | Identified Exp. Targeting Computer 6110 | -6/Factory | Found Faulty Exp. Targeting Computer 6113 | -6/Factory | Found Exp. Targeting Computer 6419 | -6/Factory | Build established: Scavenger-Gunner 6655 | -6/Factory | Discovered new exit (range 9) 6672 | -6/Factory | Identified exit to Factory 6674 | -6/Factory | Entered another Factory area 6674 | -5/Factory | Evolved 2 slots: Propulsion x1, Utility x1 7257 | -5/Factory | Lost 3 parts (3w) 7419 | -5/Factory | Lost 4 parts (2n2u) 7467 | -5/Factory | Discovered new exit (range 14) 7488 | -5/Factory | Identified exit to Factory 7489 | -5/Factory | Entered another Factory area 7489 | -4/Factory | Evolved 2 slots: Power x1, Weapon x1 7489 | -4/Factory | Spotted B-86 Titan 7805 | -4/Factory | Spotted B-86 Titan 7826 | -4/Factory | Destroyed B-86 Titan 7855 | -4/Factory | Lost 5 parts (1n1u3w) 7964 | -4/Factory | Discovered new exit (range 15) 8016 | -4/Factory | Identified exit to Research 8018 | -4/Factory | Entered Research 8018 | -3/Research | Evolved 2 slots: Utility x2 8664 | -3/Research | Discovered new exit (range 8) 8709 | -3/Research | Identified exit to Quarantine 9151 | -3/Research | Found Enh. Force Lance 9254 | -3/Research | Destroyed 9 combat bots 9514 | -3/Research | Spotted B-86 Titan 9592 | -3/Research | Lost 3 parts (1n1u1w) 9647 | -3/Research | Destroyed B-86 Titan 9677 | -3/Research | Lost 7 parts (2n1u4w) 9729 | -3/Research | System corruption reached 10% 9768 | -3/Research | First assault squad dispatched 10394 | -3/Research | Lost 11 parts (2p2n2u5w) 10518 | -3/Research | Discovered exit to Quarantine (range 14) 10693 | -3/Research | Lost 4 parts (2n2w) 10727 | -3/Research | Core integrity fell below 50% 10734 | -3/Research | Released all parts (13) 10751 | -3/Research | Core integrity fell below 20% 10755 | -3/Research | Destroyed by S-43 Plague with Heavy Machine Gun Last Messages --------------- 10734_ Released Imp. Signal Interpreter. 10734_ Released Lrg. Storage Unit. 10734_ Released Mic. Fission Core. 10734_ Released Lyr. Light Armor Plating. 10734_ Released Railgun. 10734_ Released Imp. Coolant Injector. 10734_ Released Nova Cannon. 10734_ Released Mic. Fission Core. 10734_ Extracted 1 energy. 10735_ Penetrated by Slug. 10735_ R-10 Processor collects Lyr. Light Armor Plating. 10738_ R-10 Processor collects Lrg. Storage Unit. 10739_ Slammed into U-05 Engineer. 10739_ ALERT: Construction progress impeded, dispatching reinforcements to local area. 10739_ Slug penetrates Wall. 10740_ Slammed into W-44 Eye. 10742_ NKTAN1LJ&ILSF7,9| B<7KAM0HHBSUE>DA24 10751_ Slammed into S-43 Plague. 10751_ Destabilizing: Core damaged (-65). Map ----- +----------------------------------------------------+ | ?????????????????????????????????????????????????? | | ?????????????????????????????????????????????????? | | ?????????????????????????????????????????????????? | | ?????????????????????????????????????????????????? | | ?????????????????????????????????????????????????? | | ?????????????????????????????????????????????????? | | ?????????????????????????????????????????????????? | | ????????????????????????????Y????????????????????? | | ?????????????????????????????????????????????????? | | ?????????????????????????????????????????????????? | | ?????????????????????????????????????????????????? | | ?????????????????????????????????????????????????? | | ????????????????????????????o????????????????????? | | ?????????????????????###########?????????????????? | | ????????????????????? #?????????????????? | | ????????????????????? ! #?????????????????? | | ???????????????????? #?????????????????? | | ??????????????????# """ ""#?????????????????? | | ??????????????????# """ ""#?????????????????? | | ??????????????????# """ ""#?????????????????? | | ??????????????????# """ T#?????????????????? | | ??????????????????# """ ""#?????????????????? | | ??????????????????# ""#?????????????????? | | ??????????????????# ""#?????????????????? | | ??????????????????# ss #?????????????????? | | ?????????BB???????# @ s #?????????????????? | | ?????????BB?# ###########s###+##?????????????????? | | ?????????? g #??????????????????? | | ?????????? g #??????????????????? | | ?????????? l #?#####????????????? | | ?????????? #? #????????????? | | ??????????? g # #????????????? | | ??????????? # #????????????? | | ???????????? + #???#?###?#"?? | | ???????????? k # #?#""""" "#"?? | | ???????????? !!! " "" # #?#" " " "#"?? | | ?????????????!!! "R"" #? #?#" " "## | | ?????????????!!! """ #######?#"" "T# | | ??????????????#####+######### # ] #?#" | | ???????????w????????????????#g+ #?#"" > | | ????????????????????????????#h# #?#" | | ????????????????????????????#g# ! #?#"" " # | | ????????????????????????????# + #?#" " "## | | ????????????????????????????# # #?#" " " "#"?? | | ????????????????????????????# # #?#""""" "#"?? | | ????????????????????????????# #######??######?#"?? | | ????????????????????????????# #????????????????"?? | | ????????????????????????????# #??????????????????? | | ????????????????????????????# #??????????????????? | | ??????????????????????????###/#########??????????? | +----------------------------------------------------+ Best States ------------- Heat Dissipation 104 Coolant Potential 160 Energy Generation 39 Energy Capacity 590 Matter Stores 300 Matter Capacity 300 Sight Range 18 Terrain Scan Density 10 Additional Mass Support 9 Base Temperature (-) 200 Armor Coverage 1200 Resistance: KI 30 Power Shielding 66 Utility Shielding 33 Weapon Cycling 25 Evasion (%) 62 Targeting Accuracy 24 Recoil Reduction 4 Matter Filtering 50 Energy Filtering 30 Item Schematics ----------------- None Robot Schematics ------------------ None Fabricated ------------ Adv. Cooling System | x1 | -7/Factory | Preloaded Alien Tech Used ----------------- None Achievements -------------- None Challenges ------------ None Game ------ Seed NeutronSegregatorManipulator Manual? 0 Play Time 02:22:11 Cumulative 31.0 hours Start 2021.07.09 @ 22:58:37 End 2021.07.12 @ 18:06:00 Sessions 9 Manual Loads 0 Difficulty Rogue Special Mode None Game No. 17 Rogue 17 Adventurer 0 Explorer 0 Win Type - Total 0 Types 0/0/0/0/0/0/0/0/0 Lore% 24 Gallery% 36 Achievement% 27 Wizard Run 0 Options --------- ASCII 0 Keyboard 1 Movement Vi Keybinds 0 Fullscreen 2 Font 18/Cog Map View 76x50 Tactical HUD 1 Map Filters NONE Filters NONE Steam 0 RUN: 9c4bccec-54ed-4270-a4bc-e33d4d849e89